bitfinex-derivatives/quotes_BTCF0:USTF0_20251125
["timestamp","ask_amount","ask_price","bid_price","bid_amount"]
[1764086942131,0.13954257,86938.0,86937.0,0.13889]
[1764086943635,0.13854257,86938.0,86937.0,0.13889]
[1764086943829,0.13737,86926.0,86925.0,0.42979]
[1764086944030,0.1488805,86926.0,86925.0,0.42979]
[1764086944233,0.1488805,86926.0,86925.0,0.49969]
[1764086944536,0.0115105,86926.0,86925.0,0.49969]
[1764086944935,0.1488805,86926.0,86925.0,0.49969]
[1764086945436,0.13754257,86938.0,86937.0,0.06899]
[1764086945629,0.25905147,86938.0,86937.0,0.06899]
[1764086945830,0.56905147,86938.0,86937.0,0.06899]
[1764086946136,0.1488805,86926.0,86925.0,0.49969]
[1764086947138,0.14905147,86938.0,86937.0,0.13889]
[1764086947345,0.1488805,86926.0,86925.0,0.49969]
[1764086948941,0.13737,86926.0,86925.0,0.49969]
[1764086949134,0.15005147,86938.0,86937.0,0.13889]
[1764086949532,0.41905147,86938.0,86937.0,0.13889]
[1764086949731,0.41905147,86938.0,86937.0,0.06899]
[1764086950131,0.42005147,86938.0,86937.0,0.06899]
[1764086950328,0.1488797,86932.0,86931.0,0.13889]
[1764086950735,0.1488805,86926.0,86925.0,0.3608]
[1764086950941,0.1488805,86926.0,86925.0,0.42979]
[1764086951441,0.1517197,86933.0,86932.0,0.13933]
[1764086951636,0.1517205,86926.0,86925.0,0.50013]
[1764086953147,0.00017257,86938.0,86932.0,0.13933]
[1764086953148,0.14021,86933.0,86932.0,0.13933]
[1764086953330,0.1517196,86933.0,86932.0,0.13933]
[1764086954238,0.1517196,86933.0,86925.0,0.3608]
[1764086954239,0.00017257,86938.0,86931.0,0.0423]
[1764086954440,0.00017257,86938.0,86937.0,0.13933]
[1764086954635,0.15189147,86938.0,86937.0,0.13933]
[1764086955638,0.51269147,86938.0,86937.0,0.13933]
[1764086955839,0.51269147,86938.0,86925.0,0.3608]
[1764086955840,0.1517205,86926.0,86925.0,0.42987]
[1764086956038,0.0115096,86933.0,86925.0,0.3608]
[1764086956340,0.1517196,86933.0,86932.0,0.13933]
[1764086956743,0.1517205,86926.0,86925.0,0.50013]
[1764086957536,0.51269147,86938.0,86937.0,0.13933]
[1764086957947,0.1517197,86932.0,86931.0,0.06907]
[1764086958243,0.1517197,86932.0,86931.0,0.13933]
[1764086959841,0.1517205,86926.0,86925.0,0.50013]
[1764086960542,0.14021,86926.0,86925.0,0.50013]
[1764086962346,0.50101,86926.0,86925.0,0.13933]
[1764086962550,0.50101,86926.0,86897.0,0.13933]
[1764086962551,0.1517242,86898.0,86897.0,0.13933]
[1764086962743,0.1517242,86898.0,86877.0,0.10347051]
[1764086962744,0.0115169,86878.0,86877.0,0.0423]
[1764086963043,0.0822181,86869.0,86868.0,0.18163]
[1764086963237,0.10522201,86869.0,86868.0,0.18163]
[1764086963435,0.10522201,86869.0,86859.0,0.0423]
[1764086963436,0.0822193,86860.0,86859.0,0.18163]
[1764086963639,0.0707,86851.0,86850.0,0.18163]
[1764086963841,0.10534057,86851.0,86850.0,0.18163]
[1764086964047,0.14021,86844.0,86843.0,0.06907]
[1764086964251,0.50110573,86844.0,86843.0,0.06907]
[1764086964443,0.52406028,86844.0,86843.0,0.06907]
[1764086964637,0.0115223,86838.0,86837.0,0.13933]
[1764086965147,0.1517322,86838.0,86825.0,0.3608]
[1764086965446,0.0115223,86837.0,86825.0,0.3608]
[1764086965660,0.0707,86831.0,86830.0,0.18163]
[1764086965850,0.07081616,86831.0,86830.0,0.18163]
[1764086966248,0.00011616,86831.0,86830.0,0.18163]
[1764086966457,0.3608,86844.0,86843.0,0.13933]
[1764086966646,0.18208,86849.0,86845.0,0.18163]
[1764086966841,0.09267624,86866.0,86845.0,0.54243]
[1764086967064,0.3720706,86869.0,86845.0,0.54243]
[1764086967447,0.15568,86862.0,86861.0,0.13933]
[1764086968750,0.29589,86862.0,86861.0,0.14033]
[1764086968952,0.29589,86862.0,86861.0,0.07007]
[1764086969659,0.67589,86862.0,86861.0,0.001]
[1764086970444,1.03669,86862.0,86861.0,0.001]
[1764086970659,1.03669,86862.0,86861.0,0.07007]
[1764086970858,1.03669,86862.0,86861.0,0.001]
[1764086971356,0.1517301,86854.0,86853.0,0.00017267]
[1764086971552,0.9225301,86854.0,86853.0,0.00017267]
[1764086972448,0.9225301,86854.0,86853.0,0.00117267]
[1764086972947,1.1525301,86854.0,86853.0,0.00117267]
[1764086973859,1.1525301,86854.0,86853.0,0.00217267]
[1764086974752,0.9225301,86854.0,86853.0,0.00217267]
[1764086976757,1.3325301,86854.0,86853.0,0.00217267]
[1764086977058,0.151732,86839.0,86826.0,0.3608]
[1764086977252,0.333892,86839.0,86826.0,0.3608]
[1764086977456,0.25286,86839.0,86838.0,0.50013]
[1764086977654,0.18216,86839.0,86838.0,0.50013]
[1764086977961,0.3608,86845.0,86844.0,0.13933]
[1764086978165,0.61366,86845.0,86844.0,0.13933]
[1764086978562,0.14021,86839.0,86838.0,0.3638]
[1764086978861,0.1517321,86839.0,86838.0,0.3638]
[1764086979164,0.1517321,86839.0,86838.0,0.002]
[1764086979369,0.5917321,86839.0,86838.0,0.002]
[1764086979968,0.1517331,86832.0,86831.0,0.13933]
[1764086980266,0.1517336,86827.0,86826.0,0.3608]
[1764086980460,0.1517336,86827.0,86816.0,0.3608]
[1764086980461,0.1517344,86821.0,86820.0,0.13933]
[1764086980654,0.151735,86817.0,86816.0,0.3608]
[1764086981653,0.0115259,86810.0,86809.0,0.06392]
[1764086981967,0.0115259,86810.0,86807.0,0.3608]
[1764086981968,0.1296,86808.0,86807.0,0.3608]
[1764086982154,0.6918,86808.0,86807.0,0.3608]
[1764086982355,0.6718,86808.0,86807.0,0.3608]
[1764086982668,0.0115274,86799.0,86798.0,0.12912]
[1764086982968,0.076837,86803.0,86802.0,0.06392]
[1764086983163,0.141127,86803.0,86802.0,0.06392]
[1764086983366,0.1296,86803.0,86802.0,0.12912]
[1764086984257,0.1296,86798.0,86797.0,0.12912]
[1764086984462,0.4976,86798.0,86797.0,0.12912]
[1764086984767,0.4976,86798.0,86797.0,0.06392]
[1764086985067,0.0115283,86792.0,86791.0,0.12912]
[1764086985270,0.0095286,86790.0,86789.0,0.12912]
[1764086985459,0.07178855,86794.0,86789.0,0.12912]
[1764086985660,0.0742682,86793.0,86792.0,0.06392]
[1764086985862,0.1370082,86793.0,86792.0,0.06392]
[1764086986163,0.5570082,86793.0,86792.0,0.06392]
[1764086986467,0.1370098,86781.0,86780.0,0.3608]
[1764086986665,0.1370098,86781.0,86780.0,0.48992]
[1764086987255,0.4970098,86781.0,86780.0,0.48992]
[1764086987462,0.4970098,86781.0,86780.0,0.06392]
[1764086987664,0.011531,86772.0,86771.0,0.12912]
[1764086987869,0.137011,86772.0,86771.0,0.12912]
[1764086988172,0.01153,86779.0,86768.0,0.0423]
[1764086988364,0.0115311,86772.0,86768.0,0.0423]
[1764086988565,0.0742711,86772.0,86771.0,0.12912]
[1764086988768,0.00017277,86780.0,86779.0,0.04164]
[1764086988961,0.00017277,86780.0,86779.0,0.17076]
[1764086989462,0.06291277,86780.0,86779.0,0.17076]
[1764086989859,0.00017277,86780.0,86779.0,0.17076]
[1764086990570,0.3608,86809.0,86790.0,0.17076]
[1764086990872,0.772327,86802.0,86801.0,0.17076]
[1764086991063,0.704607,86802.0,86801.0,0.17076]
[1764086991260,0.38362788,86802.0,86801.0,0.17076]
[1764086991467,0.3608,86802.0,86801.0,0.17076]
[1764086991960,0.18228,86803.0,86802.0,0.12912]
[1764086992162,2.87e-06,86810.0,86809.0,0.12912]
[1764086992465,2.87e-06,86810.0,86808.0,0.04164]
[1764086992964,0.01152877,86810.0,86809.0,0.12912]
[1764086993360,0.01252877,86810.0,86809.0,0.12912]
[1764086993761,0.13868877,86810.0,86809.0,0.06392]
[1764086994072,0.03540659,86810.0,86801.0,0.04164]
[1764086994257,0.011527,86802.0,86801.0,0.17076]
[1764086995273,0.0115276,86797.0,86796.0,0.48992]
[1764086995661,0.01152887,86810.0,86796.0,0.48992]
[1764086995662,0.0115267,86804.0,86803.0,0.0652]
[1764086995972,0.0115267,86804.0,86796.0,0.3608]
[1764086995973,0.011526,86809.0,86808.0,0.17076]
[1764086996366,0.0228808,86809.0,86808.0,0.17076]
[1764086996963,2.87e-06,86810.0,86808.0,0.04164]
[1764086997470,2.87e-06,86810.0,86809.0,0.011526]
[1764086997664,0.0115242,86823.0,86822.0,0.12912]
[1764086997865,0.18228,86830.0,86828.0,0.12912]
[1764086998173,0.03440277,86829.0,86828.0,0.12912]
[1764086999274,0.03540277,86829.0,86828.0,0.12912]
[1764086999970,0.10174277,86829.0,86828.0,0.12912]
[1764087000367,0.02487937,86829.0,86828.0,0.12912]
[1764087000768,0.00017277,86837.0,86836.0,0.12644]
[1764087001175,0.3608,86861.0,86860.0,0.12644]
[1764087001570,0.18228,86869.0,86856.0,0.03884]
[1764087001571,0.0115195,86859.0,86858.0,0.06186]
[1764087001872,0.0115199,86855.0,86854.0,0.48724]
[1764087002376,0.00017277,86863.0,86854.0,0.48724]
[1764087002570,0.00017277,86863.0,86862.0,0.12644]
[1764087002771,0.3722389,86898.0,86886.0,0.12644]
[1764087002976,0.3722389,86898.0,86893.0,0.06186]
[1764087002977,0.13367,86894.0,86893.0,0.06186]
[1764087003170,0.13367,86894.0,86880.0,0.39543]
[1764087003171,0.0115156,86888.0,86880.0,0.39543]
[1764087003474,0.011516,86885.0,86884.0,0.06186]
[1764087003676,0.077856,86885.0,86884.0,0.06186]
[1764087003871,0.00017266,86893.0,86892.0,0.06186]
[1764087004075,0.13384266,86893.0,86892.0,0.06186]
[1764087004370,0.0115161,86884.0,86883.0,0.06186]
[1764087004573,0.145187,86877.0,86876.0,0.00017266]
[1764087005070,0.3608,86884.0,86876.0,0.12661266]
[1764087005276,0.7708,86884.0,86882.0,0.06186]
[1764087005471,0.7708,86884.0,86883.0,0.12644]
[1764087006075,0.8486561,86884.0,86883.0,0.12644]
[1764087006277,0.83714,86884.0,86883.0,0.12644]
[1764087006690,0.83714,86884.0,86879.0,0.03884]
[1764087006691,0.002,86884.0,86879.0,0.03884]
[1764087006880,0.002,86884.0,86883.0,0.12644]
[1764087007377,0.001,86884.0,86883.0,0.12644]
[1764087007686,0.00017266,86893.0,86892.0,0.16528]
[1764087007984,0.00017266,86893.0,86892.0,0.52608]
[1764087008574,0.00017266,86893.0,86878.0,0.3608]
[1764087008575,0.0778568,86879.0,86878.0,0.3608]
[1764087008772,0.001,86884.0,86883.0,0.12644]
[1764087009174,0.0115164,86882.0,86879.0,0.03884]
[1764087009375,0.0115164,86882.0,86881.0,0.12644]
[1764087009776,0.0778564,86882.0,86881.0,0.12644]
[1764087010175,0.0115164,86882.0,86881.0,0.12644]
[1764087010377,0.001,86884.0,86883.0,0.12644]
[1764087011374,0.001,86884.0,86879.0,0.03884]
[1764087011375,0.0115152,86891.0,86890.0,0.12297]
[1764087011676,0.0115152,86891.0,86878.0,0.3608]
[1764087011677,0.06269,86879.0,86878.0,0.3608]
[1764087011881,0.0742068,86879.0,86878.0,0.4254]
[1764087012071,0.0115168,86879.0,86878.0,0.48651]
[1764087012268,0.001,86884.0,86883.0,0.12571]
[1764087012468,0.00017266,86893.0,86879.0,0.03857]
[1764087012469,0.00017266,86893.0,86892.0,0.16428]
[1764087012767,0.3723123,86913.0,86912.0,0.12571]
[1764087012980,0.4350023,86913.0,86912.0,0.12571]
[1764087013780,0.3608,86913.0,86912.0,0.12571]
[1764087014883,0.42549,86913.0,86912.0,0.12571]
[1764087015080,0.1372832,86906.0,86905.0,0.0646]
[1764087015284,0.12577,86905.0,86904.0,0.00017266]
[1764087015873,0.48657,86905.0,86904.0,0.00017266]
[1764087016184,1.39524,86905.0,86904.0,0.00017266]
[1764087016384,0.94524,86905.0,86904.0,0.00017266]
[1764087016985,0.94624,86905.0,86904.0,0.00017266]
[1764087017485,0.94724,86905.0,86904.0,0.00017266]
[1764087017976,0.94624,86905.0,86904.0,0.00017266]
[1764087018185,0.94724,86905.0,86904.0,0.00017266]
[1764087019783,0.0115162,86883.0,86882.0,0.12571]
[1764087019982,0.0115158,86886.0,86885.0,0.0646]
[1764087020286,0.3608,86897.0,86896.0,0.12571]
[1764087020678,0.48657,86897.0,86884.0,0.3608]
[1764087020991,0.0742053,86890.0,86889.0,0.12571]
[1764087021584,0.1372848,86894.0,86893.0,0.0646]
[1764087022176,0.00017266,86899.0,86896.0,0.12571]
[1764087022376,0.00017266,86899.0,86898.0,0.12571]
[1764087022680,0.18224,86913.0,86912.0,0.12571]
[1764087023087,0.011512,86916.0,86915.0,0.12571]
[1764087023875,0.0115118,86916.0,86915.0,0.12571]
[1764087024074,0.0115118,86916.0,86908.0,0.3608]
[1764087024075,0.12577,86911.0,86910.0,0.0646]
[1764087024289,0.12577,86911.0,86910.0,0.12571]
[1764087024484,0.12577,86911.0,86908.0,0.3608]
[1764087024485,0.0115121,86915.0,86914.0,0.12571]
[1764087024878,0.06269,86908.0,86907.0,0.06477266]
[1764087025081,0.0742029,86908.0,86907.0,0.06477266]
[1764087025283,0.1372829,86908.0,86907.0,0.00017266]
[1764087026284,0.06269,86908.0,86907.0,0.12588266]
[1764087026584,0.001,86908.0,86907.0,0.12588266]
[1764087026788,0.06369,86908.0,86907.0,0.12588266]
[1764087026990,0.12677,86908.0,86907.0,0.00017266]
[1764087027492,0.12777,86908.0,86907.0,0.00017266]
[1764087027882,0.12677,86908.0,86907.0,0.00017266]
[1764087028089,0.52677,86908.0,86907.0,0.00017266]
[1764087028594,0.35677,86908.0,86907.0,0.00017266]
[1764087028779,0.35777,86908.0,86907.0,0.00017266]
[1764087029091,0.35777,86908.0,86907.0,0.12588266]
[1764087029092,0.12777,86908.0,86907.0,0.12588266]
[1764087029484,0.12677,86908.0,86907.0,0.12588266]
[1764087029790,0.12777,86908.0,86907.0,0.12588266]
[1764087029985,0.001,86908.0,86907.0,0.12588266]
[1764087030387,0.12677,86908.0,86907.0,0.00017266]
[1764087030784,0.52677,86908.0,86907.0,0.12588266]
[1764087030987,0.0115128,86909.0,86908.0,0.12571]
[1764087031186,0.0115125,86911.0,86910.0,0.0646]
[1764087031495,0.1822,86912.0,86911.0,0.12571]
[1764087031692,0.3608,86919.0,86918.0,0.12571]
[1764087031880,0.01168346,86924.0,86923.0,0.12571]
[1764087032083,0.00017266,86924.0,86923.0,0.12571]
[1764087032589,0.01168346,86924.0,86923.0,0.12571]
[1764087033282,0.00017266,86924.0,86923.0,0.12571]
[1764087033495,0.1822,86927.0,86926.0,0.12571]
[1764087034797,0.00011335,86935.0,86934.0,0.12571]
[1764087035181,0.06280335,86935.0,86934.0,0.12571]
[1764087035789,0.0115104,86927.0,86926.0,0.00017256]
[1764087035985,0.0115104,86927.0,86926.0,0.12588256]
[1764087036588,0.0742004,86927.0,86926.0,0.12588256]
[1764087036903,0.1372804,86927.0,86926.0,0.00017256]
[1764087037290,0.0115104,86927.0,86926.0,0.12588256]
[1764087037997,0.1382804,86927.0,86926.0,0.06477256]
[1764087038700,0.1372804,86927.0,86926.0,0.06477256]
[1764087038998,0.1382804,86927.0,86926.0,0.06477256]
[1764087039204,0.1392804,86927.0,86926.0,0.00017256]
[1764087040201,0.1382804,86927.0,86926.0,0.00017256]
[1764087040391,0.1392804,86927.0,86926.0,0.00017256]
[1764087040597,0.1372831,86907.0,86906.0,0.12571]
[1764087040803,0.12577,86905.0,86904.0,0.48651]
[1764087041298,0.0115131,86907.0,86906.0,0.1307]
[1764087041499,0.0115143,86898.0,86897.0,0.1307]
[1764087041704,0.18216,86910.0,86900.0,0.0678]
[1764087041705,0.0748839,86901.0,86900.0,0.0678]
[1764087041906,0.0748839,86901.0,86900.0,0.1307]
[1764087042106,0.0115139,86901.0,86900.0,0.1307]
[1764087042609,0.13081,86899.0,86898.0,0.00017256]
[1764087044003,0.56181,86899.0,86898.0,0.00017256]
[1764087044209,0.57349491,86899.0,86898.0,0.00017256]
[1764087044399,1.00349491,86899.0,86898.0,0.00017256]
[1764087044800,0.0748865,86881.0,86880.0,0.3608]
[1764087045102,0.0748865,86881.0,86880.0,0.4915]
[1764087045408,0.3608,86887.0,86886.0,0.1307]
[1764087045905,0.1936751,86892.0,86891.0,0.1307]
[1764087046106,0.18216,86892.0,86891.0,0.1307]
[1764087046304,0.06337,86881.0,86880.0,0.46552]
[1764087046502,0.06337,86881.0,86880.0,0.52842]
[1764087047612,0.3608,86891.0,86880.0,0.52842]
[1764087047800,0.0115161,86884.0,86883.0,0.1307]
[1764087048209,0.0748858,86887.0,86886.0,0.0678]
[1764087048709,0.1423257,86887.0,86886.0,0.1307]
[1764087048897,0.24553,86892.0,86890.0,0.0678]
[1764087049095,0.09016509,86898.0,86894.0,0.1307]
[1764087049301,0.18229256,86895.0,86894.0,0.1307]
[1764087050508,0.31410256,86895.0,86894.0,0.1307]
[1764087050714,0.0115156,86888.0,86887.0,0.0629]
[1764087050899,0.0115156,86888.0,86887.0,0.1307]
[1764087051305,0.0748856,86888.0,86887.0,0.1307]
[1764087051505,0.0115156,86888.0,86887.0,0.1307]
[1764087052904,0.1423256,86888.0,86887.0,0.1307]
[1764087053304,0.0748856,86888.0,86887.0,0.1307]
[1764087053599,0.3608,86894.0,86893.0,0.0629]
[1764087053803,0.3608,86894.0,86893.0,0.1307]
[1764087055312,0.00017256,86895.0,86894.0,0.1307]
[1764087055615,0.19679559,86920.0,86894.0,0.1307]
[1764087055616,0.01137134,86914.0,86913.0,0.1307]
[1764087055805,0.011512,86915.0,86913.0,0.1307]
[1764087056003,0.1822,86918.0,86917.0,0.1307]
[1764087056409,0.1822,86918.0,86917.0,0.1422117]
[1764087056608,0.00017256,86926.0,86925.0,0.1307]
[1764087056811,0.00017256,86926.0,86925.0,0.4915]
[1764087057514,0.0916698,86938.0,86937.0,0.1307]
[1764087057715,0.3245184,86942.0,86941.0,0.0678]
[1764087058011,0.41436154,86942.0,86941.0,0.1307]
[1764087058210,0.0115091,86937.0,86936.0,0.4286]
[1764087058613,0.0115091,86937.0,86936.0,0.4915]
[1764087058916,0.1423191,86937.0,86936.0,0.4286]
[1764087059418,0.1433191,86937.0,86936.0,0.4286]
[1764087059717,0.1433191,86937.0,86936.0,0.48493]
[1764087059918,0.1443191,86937.0,86936.0,0.3608]
[1764087060317,0.01169331,86944.0,86936.0,0.3608]
[1764087060318,0.00011335,86945.0,86944.0,0.11122]
[1764087060509,0.00011335,86945.0,86944.0,0.47202]
[1764087060705,0.00011335,86945.0,86934.0,0.3608]
[1764087060706,0.1126,86935.0,86934.0,0.3608]
[1764087060910,0.0691701,86929.0,86928.0,0.05506256]
[1764087061218,0.05766,86929.0,86928.0,0.11139256]
[1764087061419,0.0115101,86929.0,86928.0,0.11139256]
[1764087061821,0.0115098,86932.0,86931.0,0.11122]
[1764087062416,0.1241098,86932.0,86931.0,0.05489]
[1764087062719,0.1241098,86932.0,86928.0,0.00017256]
[1764087062720,0.1241101,86929.0,86928.0,0.00017256]
[1764087062914,0.8949101,86929.0,86928.0,0.00017256]
[1764087064218,0.4849101,86929.0,86928.0,0.11139256]
[1764087064722,0.4859101,86929.0,86928.0,0.11139256]
[1764087065517,0.4849101,86929.0,86928.0,0.00017256]
[1764087065721,0.4859101,86929.0,86928.0,0.00017256]
[1764087065909,1.4281101,86929.0,86928.0,0.00017256]
[1764087066127,1.0581101,86929.0,86928.0,0.00017256]
[1764087066316,1.1071101,86929.0,86928.0,0.00017256]
[1764087066514,1.0581101,86929.0,86928.0,0.00017256]
[1764087067012,1.2781101,86929.0,86928.0,0.00017256]
[1764087067209,0.3073101,86929.0,86928.0,0.00017256]
[1764087067411,0.001,86929.0,86928.0,0.14338256]
[1764087068021,0.002,86929.0,86928.0,0.14338256]
[1764087068830,0.002,86929.0,86928.0,0.50418256]
[1764087069028,0.0013502,86929.0,86928.0,0.50418256]
[1764087069420,0.0590102,86929.0,86928.0,0.50418256]
[1764087070431,0.05866,86929.0,86928.0,0.50418256]
[1764087070930,0.24612345,86937.0,86928.0,0.50418256]
[1764087071527,0.11266,86929.0,86928.0,0.36097256]
[1764087071734,0.11266,86929.0,86928.0,0.50350256]
[1764087071929,0.0115099,86931.0,86930.0,0.10968]
[1764087072531,0.05542,86934.0,86933.0,0.10968]
[1764087072732,0.00011335,86945.0,86933.0,0.10968]
[1764087072928,0.0669285,86941.0,86940.0,0.10968]
[1764087073133,0.0115085,86941.0,86940.0,0.10968]
[1764087073328,0.18224,86942.0,86941.0,0.10968]
[1764087074330,0.0115053,86966.0,86952.0,0.10968]
[1764087074525,0.7341653,86966.0,86965.0,0.05383]
[1764087074726,0.0115065,86956.0,86955.0,0.14253]
[1764087075128,0.0669265,86956.0,86955.0,0.14253]
[1764087075328,0.0115073,86950.0,86949.0,0.47048]
[1764087075530,0.1241673,86950.0,86949.0,0.47048]
[1764087076327,0.11266,86948.0,86947.0,0.00017256]
[1764087076833,0.89266,86948.0,86947.0,0.00017256]
[1764087077830,0.78,86948.0,86930.0,0.3608]
[1764087078135,0.0669299,86931.0,86930.0,0.47048]
[1764087078730,0.1277599,86931.0,86930.0,0.47048]
[1764087079235,0.0669299,86931.0,86930.0,0.47048]
[1764087079425,0.0115096,86934.0,86930.0,0.47048]
[1764087079626,0.002,86948.0,86947.0,0.11879]
[1764087079830,0.1842,86948.0,86947.0,0.11879]
[1764087080031,0.1957076,86948.0,86947.0,0.11879]
[1764087080229,0.2519476,86948.0,86947.0,0.11879]
[1764087080431,0.2509476,86948.0,86947.0,0.11879]
[1764087080631,0.1822,86948.0,86947.0,0.11879]
[1764087081339,0.1832,86948.0,86947.0,0.11879]
[1764087084135,0.1832,86948.0,86939.0,0.3608]
[1764087084136,0.0115087,86940.0,86939.0,0.47959]
[1764087084437,0.0687497,86933.0,86932.0,0.05802]
[1764087084631,0.0687497,86933.0,86932.0,0.11879]
[1764087084832,0.1295797,86933.0,86932.0,0.11879]
[1764087085437,0.11807,86931.0,86930.0,0.3608]
[1764087085745,0.0115109,86923.0,86922.0,0.51261256]
[1764087086437,0.1295809,86923.0,86922.0,0.51261256]
[1764087086636,0.00017256,86931.0,86930.0,0.11879]
[1764087087741,0.11924256,86931.0,86930.0,0.11879]
[1764087087942,0.50924256,86931.0,86922.0,0.39382256]
[1764087088135,0.39117256,86931.0,86922.0,0.39382256]
[1764087088632,0.39117256,86931.0,86922.0,0.51261256]
[1764087088834,0.55075246,86931.0,86930.0,0.11879]
[1764087089441,0.0687509,86923.0,86922.0,0.51261256]
[1764087089737,0.1295809,86923.0,86922.0,0.51261256]
[1764087090041,0.11807,86923.0,86922.0,0.51261256]
[1764087090836,0.00017256,86931.0,86930.0,0.11879]
[1764087091044,0.30017256,86931.0,86930.0,0.11879]
[1764087091540,0.00017256,86931.0,86930.0,0.11879]
[1764087091729,0.18233256,86931.0,86930.0,0.11879]
[1764087091935,0.00017256,86931.0,86930.0,0.47959]
[1764087093034,0.00117256,86931.0,86930.0,0.47959]
[1764087094040,0.18216,86946.0,86933.0,0.03448]
[1764087094249,0.18216,86946.0,86945.0,0.11879]
[1764087095845,0.18316,86946.0,86945.0,0.11879]
[1764087096237,0.18416,86946.0,86945.0,0.11879]
[1764087096437,0.18316,86946.0,86945.0,0.11879]
[1764087097039,0.18216,86946.0,86945.0,0.11879]
[1764087097843,0.0115068,86955.0,86946.0,0.06077]
[1764087098035,0.41752388,86960.0,86959.0,0.05802]
[1764087098236,0.0115076,86948.0,86947.0,0.47959]
[1764087098640,0.5095776,86948.0,86947.0,0.47959]
[1764087098947,0.0115076,86948.0,86947.0,0.47959]
[1764087099345,0.23540388,86957.0,86956.0,0.11879]
[1764087099647,0.1295764,86957.0,86956.0,0.11879]
[1764087099846,0.4895764,86957.0,86956.0,0.11879]
[1764087100243,0.1287464,86957.0,86956.0,0.11879]
[1764087100545,0.4887464,86957.0,86956.0,0.11879]
[1764087100747,0.05824,86957.0,86956.0,0.11879]
[1764087100943,0.001,86957.0,86956.0,0.11879]
[1764087104050,0.1266765,86956.0,86955.0,0.47207]
[1764087104352,0.5066765,86956.0,86955.0,0.47207]
[1764087104942,0.5066765,86956.0,86955.0,0.41635]
[1764087105143,0.5066765,86956.0,86955.0,0.3608]
[1764087105339,0.5076765,86956.0,86955.0,0.3608]
[1764087105542,0.1276765,86956.0,86955.0,0.41635]
[1764087105851,0.1276765,86956.0,86955.0,0.47207]
[1764087106150,0.1266765,86956.0,86955.0,0.47207]
[1764087106347,0.1276765,86956.0,86955.0,0.47207]
[1764087106543,0.001,86956.0,86955.0,0.47207]
[1764087107142,0.1266742,86974.0,86973.0,0.11127]
[1764087107346,0.7587142,86974.0,86973.0,0.11127]
[1764087107742,0.77037677,86974.0,86973.0,0.11127]
[1764087107943,0.11517,86966.0,86965.0,0.00017256]
[1764087108146,0.1266752,86966.0,86965.0,0.00017256]
[1764087108746,0.1266752,86966.0,86965.0,0.05572256]
[1764087109053,0.5666752,86966.0,86965.0,0.00017256]
[1764087109248,0.9776752,86966.0,86965.0,0.00017256]
[1764087109846,0.9786752,86966.0,86965.0,0.00017256]
[1764087110452,1.09366332,86966.0,86965.0,0.00017256]
[1764087110654,0.05741,86945.0,86944.0,0.14575]
[1764087110851,0.0115067,86955.0,86951.0,0.11127]
[1764087110852,0.11517,86952.0,86951.0,0.11127]
[1764087111039,0.12884068,86954.0,86953.0,0.11127]
[1764087111244,0.18204,86955.0,86954.0,0.11127]
[1764087111547,0.0115058,86962.0,86961.0,0.11127]
[1764087111751,0.00017256,86963.0,86962.0,0.11127]
[1764087112246,0.05758256,86963.0,86962.0,0.11127]
[1764087112650,0.11534256,86963.0,86962.0,0.11127]
[1764087113046,0.00017256,86963.0,86962.0,0.11127]
[1764087114254,0.00117256,86963.0,86962.0,0.11127]
[1764087114857,0.00217256,86963.0,86962.0,0.11127]
[1764087115452,0.1266761,86959.0,86951.0,0.3608]
[1764087115761,0.0115071,86952.0,86951.0,0.47207]
[1764087117351,0.0115067,86955.0,86951.0,0.3608]
[1764087117548,0.0115067,86955.0,86954.0,0.11127]
[1764087119158,0.1122271,86952.0,86951.0,0.3608]
[1764087119355,0.4922271,86952.0,86951.0,0.40966]
[1764087119550,0.4922271,86952.0,86951.0,0.45964]
[1764087120851,0.38,86952.0,86951.0,0.45964]
[1764087121054,0.00017256,86963.0,86951.0,0.45964]
[1764087121248,0.3608,86982.0,86951.0,0.45964]
[1764087121249,0.08284899,86981.0,86980.0,0.12985]
[1764087121547,0.1440541,86996.0,86980.0,0.12985]
[1764087121548,0.08284899,87001.0,87000.0,0.03101]
[1764087121855,0.08284899,87006.0,87005.0,0.09884]
[1764087122051,0.3708,87006.0,87005.0,0.09884]
[1764087122255,0.37233428,87006.0,87005.0,0.09884]
[1764087122557,0.3608,87006.0,87005.0,0.09884]
[1764087123058,0.3618,87006.0,87005.0,0.09884]
[1764087123269,0.001,87006.0,87005.0,0.45964]
[1764087123560,0.0117163,87014.0,87008.0,0.0114996]
[1764087123762,0.21294,87024.0,87013.0,0.3608]
[1764087124056,0.21294,87024.0,87023.0,0.3608]
[1764087124452,0.31366,87024.0,87023.0,0.3608]
[1764087125247,0.71466,87024.0,87023.0,0.3608]
[1764087125556,0.68466,87024.0,87023.0,0.3608]
[1764087125758,0.95466,87024.0,87023.0,0.3608]
[1764087126160,0.71466,87024.0,87023.0,0.3608]
[1764087126356,0.68466,87024.0,87023.0,0.3608]
[1764087126557,0.43466,87024.0,87023.0,0.3608]
[1764087126864,0.45466,87024.0,87023.0,0.3608]
[1764087127362,0.73466,87024.0,87023.0,0.3608]
[1764087129264,0.1122186,87016.0,87015.0,0.00017245]
[1764087129457,0.1122186,87016.0,87003.0,0.3608]
[1764087129458,0.1122202,87004.0,87003.0,0.3608]
[1764087129652,0.5622202,87004.0,87003.0,0.3608]
[1764087130058,0.9322202,87004.0,86996.0,0.3608]
[1764087130361,0.1122211,86997.0,86996.0,0.3608]
[1764087130561,0.5422211,86997.0,86996.0,0.3608]
[1764087131064,0.1122222,86989.0,86988.0,0.00017245]
[1764087131264,0.4922222,86989.0,86988.0,0.00017245]
[1764087131651,0.48072,86989.0,86988.0,0.00017245]
[1764087131862,0.48072,86989.0,86988.0,0.04071245]
[1764087132161,0.46690612,86989.0,86988.0,0.04071245]
[1764087132352,0.46690612,86989.0,86988.0,0.09141245]
[1764087132550,0.03094,87000.0,86999.0,0.10137]
[1764087132755,0.10144209,87005.0,87004.0,0.05067]
[1764087132957,0.32144209,87005.0,87004.0,0.05067]
[1764087133255,0.00017209,87005.0,87004.0,0.10137]
[1764087133855,0.0114989,87014.0,87011.0,0.05067]